[Event "*** SCC Grand Prix: Titled Tuesday Blitz"]
[Site "Chess.com"]
[Date "2020.08.11"]
[Round "10"]
[White "ArjunErigaisi2003"]
[Black "Msb2"]
[Result "0-1"]
[WhiteElo "3003"]
[BlackElo "2829"]
[TimeControl "180+1"]
[EndTime "11:58:35 PDT"]
[Termination "Msb2 won by resignation"]

1. d4 {[%clk 0:03:00.9]} 1... d5 {[%clk 0:03:00.1]} 2. c4 {[%clk 0:03:00.3]}
2... c6 {[%clk 0:03:00.7]} 3. Nf3 {[%clk 0:02:57.7]} 3... Nf6 {[%clk 0:03:00.8]}
4. e3 {[%clk 0:02:57.9]} 4... Bf5 {[%clk 0:03:00.7]} 5. Nc3 {[%clk 0:02:56.5]}
5... e6 {[%clk 0:03:00.8]} 6. Nh4 {[%clk 0:02:53.6]} 6... Be4 {[%clk 0:03:00.5]}
7. f3 {[%clk 0:02:53.2]} 7... Bg6 {[%clk 0:03:00.9]} 8. Qb3 {[%clk 0:02:53.1]}
8... Qc7 {[%clk 0:03:00.7]} 9. Bd2 {[%clk 0:02:52.2]} 9... Be7 {[%clk
0:03:00.8]} 10. g3 {[%clk 0:02:48.7]} 10... O-O {[%clk 0:03:00.2]} 11. Rc1
{[%clk 0:02:39]} 11... dxc4 {[%clk 0:02:57.6]} 12. Bxc4 {[%clk 0:02:39.9]} 12...
Nbd7 {[%clk 0:02:56.8]} 13. O-O {[%clk 0:02:37.6]} 13... e5 {[%clk 0:02:56.9]}
14. Nxg6 {[%clk 0:02:35.3]} 14... hxg6 {[%clk 0:02:57.8]} 15. d5 {[%clk
0:02:07.9]} 15... b5 {[%clk 0:02:48.3]} 16. Be2 {[%clk 0:02:03.7]} 16... Nc5
{[%clk 0:02:48.6]} 17. Qc2 {[%clk 0:01:55.2]} 17... cxd5 {[%clk 0:02:49]} 18.
Nxb5 {[%clk 0:01:39.5]} 18... Qd7 {[%clk 0:02:25.5]} 19. b4 {[%clk 0:01:33.9]}
19... Ne6 {[%clk 0:02:25.3]} 20. Qc6 {[%clk 0:01:32]} 20... Rfd8 {[%clk
0:02:05.4]} 21. a3 {[%clk 0:01:09.5]} 21... a6 {[%clk 0:01:55.1]} 22. Nc7 {[%clk
0:01:09.4]} 22... Nxc7 {[%clk 0:01:51.8]} 23. Qxc7 {[%clk 0:01:10.3]} 23... Qe8
{[%clk 0:01:45.5]} 24. Qxe5 {[%clk 0:01:08.3]} 24... Ra7 {[%clk 0:01:34]} 25.
Qd4 {[%clk 0:00:58.3]} 25... Raa8 {[%clk 0:01:28.3]} 26. Bc3 {[%clk 0:00:57]}
26... Qa4 {[%clk 0:01:26.5]} 27. Bb2 {[%clk 0:00:54.7]} 27... Re8 {[%clk
0:01:23.9]} 28. Qd1 {[%clk 0:00:54.1]} 28... Qd7 {[%clk 0:01:22.8]} 29. Bd4
{[%clk 0:00:53.9]} 29... Bd6 {[%clk 0:01:21.9]} 30. Kg2 {[%clk 0:00:51.7]} 30...
Be5 {[%clk 0:01:21.2]} 31. Rc3 {[%clk 0:00:45.7]} 31... Re6 {[%clk 0:01:16.7]}
32. Bxe5 {[%clk 0:00:44.4]} 32... Rxe5 {[%clk 0:01:17.6]} 33. Qd4 {[%clk
0:00:44.6]} 33... Rae8 {[%clk 0:01:16]} 34. Bxa6 {[%clk 0:00:43.3]} 34... g5
{[%clk 0:00:59.1]} 35. h3 {[%clk 0:00:37.5]} 35... Nh5 {[%clk 0:00:52.3]} 36.
Bd3 {[%clk 0:00:26.2]} 36... Qd6 {[%clk 0:00:48.5]} 37. f4 {[%clk 0:00:20.6]}
37... gxf4 {[%clk 0:00:47.4]} 38. exf4 {[%clk 0:00:21.5]} 38... R5e7 {[%clk
0:00:39.5]} 39. b5 {[%clk 0:00:20.2]} 39... g6 {[%clk 0:00:39.5]} 40. Rc6 {[%clk
0:00:14.8]} 40... Qxa3 {[%clk 0:00:38.6]} 41. Qc3 {[%clk 0:00:12.7]} 41... Qa8
{[%clk 0:00:32.3]} 42. g4 {[%clk 0:00:09.8]} 42... Ng7 {[%clk 0:00:30.5]} 43. f5
{[%clk 0:00:10.2]} 43... gxf5 {[%clk 0:00:27.6]} 44. gxf5 {[%clk 0:00:11.1]}
44... Re3 {[%clk 0:00:27.3]} 45. Qd4 {[%clk 0:00:09.5]} 45... Qa3 {[%clk
0:00:26]} 46. Rc3 {[%clk 0:00:06.7]} 46... Qd6 {[%clk 0:00:22.4]} 47. Qf4 {[%clk
0:00:05.4]} 47... Qf6 {[%clk 0:00:21.4]} 48. Rb3 {[%clk 0:00:05.1]} 48... Kh8
{[%clk 0:00:17.2]} 49. Rf3 {[%clk 0:00:05]} 49... Re1 {[%clk 0:00:15.6]} 50. Rf1
{[%clk 0:00:04.7]} 50... Nh5 {[%clk 0:00:15.3]} 51. Qf3 {[%clk 0:00:04.1]} 51...
Rg8+ {[%clk 0:00:15.1]} 52. Kh2 {[%clk 0:00:03]} 52... Qe5+ {[%clk 0:00:15.3]}
53. Kh1 {[%clk 0:00:02.3]} 53... Ng3+ {[%clk 0:00:15.8]} 0-1

[Event "*** SCC Grand Prix: Titled Tuesday Blitz"]
[Site "Chess.com"]
[Date "2020.08.11"]
[Round "10"]
[White "emperor87"]
[Black "Vsevolod_Ovchinnikov"]
[Result "1/2-1/2"]
[WhiteElo "2622"]
[BlackElo "2461"]
[TimeControl "180+1"]
[EndTime "11:58:35 PDT"]
[Termination "Game drawn by repetition"]

1. d4 {[%clk 0:02:58.1]} 1... Nf6 {[%clk 0:02:59.9]} 2. Nf3 {[%clk 0:02:57.8]}
2... g6 {[%clk 0:03:00.1]} 3. g3 {[%clk 0:02:57.6]} 3... Bg7 {[%clk 0:03:00.6]}
4. Bg2 {[%clk 0:02:58.5]} 4... d5 {[%clk 0:03:01.2]} 5. O-O {[%clk 0:02:59.3]}
5... O-O {[%clk 0:03:01.9]} 6. c4 {[%clk 0:02:58.8]} 6... dxc4 {[%clk
0:03:02.8]} 7. Na3 {[%clk 0:02:57.9]} 7... Nc6 {[%clk 0:03:03.1]} 8. Nxc4 {[%clk
0:02:57.3]} 8... Be6 {[%clk 0:03:03.7]} 9. b3 {[%clk 0:02:56.2]} 9... Bd5 {[%clk
0:03:03.9]} 10. Bb2 {[%clk 0:02:55.6]} 10... a5 {[%clk 0:03:04.4]} 11. Nfe5
{[%clk 0:02:53.2]} 11... Bxg2 {[%clk 0:03:02.4]} 12. Kxg2 {[%clk 0:02:54.1]}
12... Nxe5 {[%clk 0:02:54.4]} 13. dxe5 {[%clk 0:02:53.6]} 13... Nd5 {[%clk
0:02:51.7]} 14. e4 {[%clk 0:02:52.2]} 14... Nb4 {[%clk 0:02:51.3]} 15. Qe2
{[%clk 0:02:34.7]} 15... Qd3 {[%clk 0:02:48.1]} 16. Rfe1 {[%clk 0:02:27.6]}
16... Rfd8 {[%clk 0:02:35.6]} 17. f4 {[%clk 0:01:51.2]} 17... a4 {[%clk
0:01:47.4]} 18. Qxd3 {[%clk 0:01:02.3]} 18... Rxd3 {[%clk 0:01:34.8]} 19. Red1
{[%clk 0:00:52.5]} 19... axb3 {[%clk 0:01:23.2]} 20. axb3 {[%clk 0:00:42.2]}
20... Rxa1 {[%clk 0:01:19.9]} 21. Rxa1 {[%clk 0:00:34.2]} 21... Rxb3 {[%clk
0:00:39.3]} 22. Ra8+ {[%clk 0:00:31.7]} 22... Bf8 {[%clk 0:00:39.6]} 23. Bd4
{[%clk 0:00:29.2]} 23... b6 {[%clk 0:00:30.9]} 24. f5 {[%clk 0:00:26.5]} 24...
Nc6 {[%clk 0:00:28.3]} 25. Be3 {[%clk 0:00:24.7]} 25... Rxe3 {[%clk 0:00:20.4]}
26. Nxe3 {[%clk 0:00:23]} 26... Nxe5 {[%clk 0:00:20.6]} 27. Nd5 {[%clk
0:00:20.4]} 27... c6 {[%clk 0:00:13.1]} 28. Nxe7+ {[%clk 0:00:18.1]} 28... Kg7
{[%clk 0:00:13.2]} 29. f6+ {[%clk 0:00:17.4]} 29... Kxf6 {[%clk 0:00:13.6]} 30.
Nxc6 {[%clk 0:00:18.1]} 30... Bc5 {[%clk 0:00:12.2]} 31. Nxe5 {[%clk 0:00:17.8]}
31... Kxe5 {[%clk 0:00:13.1]} 32. Kf3 {[%clk 0:00:18.5]} 32... h5 {[%clk
0:00:12.5]} 33. h3 {[%clk 0:00:18.7]} 33... Ke6 {[%clk 0:00:12.6]} 34. Rb8
{[%clk 0:00:18.9]} 34... Ke5 {[%clk 0:00:11.4]} 35. Rb7 {[%clk 0:00:19.4]} 35...
Ke6 {[%clk 0:00:11.8]} 36. g4 {[%clk 0:00:19.7]} 36... hxg4+ {[%clk 0:00:12]}
37. Kxg4 {[%clk 0:00:20.3]} 37... Kf6 {[%clk 0:00:11.5]} 38. h4 {[%clk
0:00:19.5]} 38... Ke6 {[%clk 0:00:11.8]} 39. e5 {[%clk 0:00:19.4]} 39... Bd4
{[%clk 0:00:11.3]} 40. Kg5 {[%clk 0:00:19.3]} 40... Be3+ {[%clk 0:00:10.7]} 41.
Kg4 {[%clk 0:00:19.7]} 41... Bd4 {[%clk 0:00:11.2]} 42. Kf3 {[%clk 0:00:20]}
42... Bc5 {[%clk 0:00:09.3]} 43. Ke4 {[%clk 0:00:19.9]} 43... Bf2 {[%clk
0:00:09.4]} 44. Rb8 {[%clk 0:00:18.7]} 44... Ke7 {[%clk 0:00:07.2]} 45. Rh8
{[%clk 0:00:18.5]} 45... Bc5 {[%clk 0:00:05.7]} 46. Kd5 {[%clk 0:00:17.9]} 46...
Bf2 {[%clk 0:00:05.4]} 47. Rb8 {[%clk 0:00:17.2]} 47... Bxh4 {[%clk 0:00:03.8]}
48. Rxb6 {[%clk 0:00:16.9]} 48... Kf8 {[%clk 0:00:03.8]} 49. Rb7 {[%clk
0:00:17]} 49... Bg5 {[%clk 0:00:03.3]} 50. Ke4 {[%clk 0:00:16.8]} 50... Be7
{[%clk 0:00:03.1]} 51. Kd5 {[%clk 0:00:16.9]} 51... Bg5 {[%clk 0:00:03.4]} 52.
Kd6 {[%clk 0:00:17.1]} 52... Bf4 {[%clk 0:00:03.3]} 53. Kd5 {[%clk 0:00:17.1]}
53... Bg5 {[%clk 0:00:03.5]} 1/2-1/2

[Event "*** SCC Grand Prix: Titled Tuesday Blitz"]
[Site "Chess.com"]
[Date "2020.08.11"]
[Round "10"]
[White "Khvicha_Supatashvili"]
[Black "JesseKraai"]
[Result "0-1"]
[WhiteElo "2696"]
[BlackElo "2562"]
[TimeControl "180+1"]
[EndTime "11:58:40 PDT"]
[Termination "JesseKraai won on time"]

1. d4 {[%clk 0:03:00.9]} 1... d6 {[%clk 0:02:59.6]} 2. Nf3 {[%clk 0:02:59.4]}
2... Nf6 {[%clk 0:02:58.5]} 3. c4 {[%clk 0:02:58.5]} 3... Nbd7 {[%clk
0:02:58.4]} 4. Nc3 {[%clk 0:02:58.7]} 4... e5 {[%clk 0:02:58.7]} 5. Bg5 {[%clk
0:02:58.1]} 5... Be7 {[%clk 0:02:58.7]} 6. e3 {[%clk 0:02:58.4]} 6... O-O {[%clk
0:02:58.6]} 7. Be2 {[%clk 0:02:58.2]} 7... Re8 {[%clk 0:02:57.2]} 8. O-O {[%clk
0:02:57.4]} 8... h6 {[%clk 0:02:57.2]} 9. Bh4 {[%clk 0:02:56.4]} 9... g5 {[%clk
0:02:52.3]} 10. Bg3 {[%clk 0:02:54.4]} 10... Nh5 {[%clk 0:02:52.4]} 11. Qc2
{[%clk 0:02:44.6]} 11... Nxg3 {[%clk 0:02:49.2]} 12. hxg3 {[%clk 0:02:43.6]}
12... Bf6 {[%clk 0:02:47.9]} 13. d5 {[%clk 0:02:32.5]} 13... Bg7 {[%clk
0:02:46.3]} 14. e4 {[%clk 0:02:29.9]} 14... a5 {[%clk 0:02:39.1]} 15. Nh2 {[%clk
0:02:24.7]} 15... f5 {[%clk 0:02:20.1]} 16. exf5 {[%clk 0:02:23.1]} 16... Nc5
{[%clk 0:02:20.1]} 17. g4 {[%clk 0:02:21.3]} 17... e4 {[%clk 0:02:19]} 18. Rfe1
{[%clk 0:02:15.2]} 18... Qf6 {[%clk 0:02:14.8]} 19. Bf3 {[%clk 0:02:06.2]} 19...
e3 {[%clk 0:01:53.7]} 20. fxe3 {[%clk 0:02:00]} 20... Bd7 {[%clk 0:01:51.1]} 21.
Nf1 {[%clk 0:01:58.7]} 21... a4 {[%clk 0:01:49.3]} 22. Ng3 {[%clk 0:01:51.2]}
22... Qe5 {[%clk 0:01:48.3]} 23. Nh5 {[%clk 0:01:44.9]} 23... Bh8 {[%clk
0:01:43]} 24. a3 {[%clk 0:01:41.5]} 24... Rf8 {[%clk 0:01:37.2]} 25. Rad1 {[%clk
0:01:39.3]} 25... Be8 {[%clk 0:01:35.8]} 26. e4 {[%clk 0:01:26]} 26... Bxh5
{[%clk 0:01:28.6]} 27. gxh5 {[%clk 0:01:25.4]} 27... Rae8 {[%clk 0:01:21.6]} 28.
Qf2 {[%clk 0:01:22.8]} 28... Bf6 {[%clk 0:01:19.3]} 29. g3 {[%clk 0:01:20.7]}
29... Kh8 {[%clk 0:01:19.3]} 30. Kg2 {[%clk 0:01:20.2]} 30... Rg8 {[%clk
0:01:18.1]} 31. Bg4 {[%clk 0:01:17.6]} 31... Rg7 {[%clk 0:01:17.6]} 32. Re2
{[%clk 0:01:15.6]} 32... Rge7 {[%clk 0:01:17.3]} 33. Qf3 {[%clk 0:01:12.2]}
33... Nb3 {[%clk 0:01:14]} 34. Qd3 {[%clk 0:01:07.9]} 34... Nc5 {[%clk 0:01:13]}
35. Qf3 {[%clk 0:01:06.8]} 35... Nb3 {[%clk 0:01:12.2]} 36. Qe3 {[%clk
0:01:03.7]} 36... Nc5 {[%clk 0:01:06]} 37. Kf3 {[%clk 0:00:30.6]} 37... Ra8
{[%clk 0:01:05.5]} 38. Kg2 {[%clk 0:00:29.1]} 38... Ra6 {[%clk 0:01:05.4]} 39.
Nb5 {[%clk 0:00:26.6]} 39... Rb6 {[%clk 0:01:03.1]} 40. Nd4 {[%clk 0:00:24.4]}
40... Re8 {[%clk 0:00:46.7]} 41. Qf3 {[%clk 0:00:20.4]} 41... Re7 {[%clk
0:00:37.7]} 42. Qe3 {[%clk 0:00:13.3]} 42... Re8 {[%clk 0:00:37.3]} 43. Nb5
{[%clk 0:00:12.6]} 43... Re7 {[%clk 0:00:36.1]} 44. Rde1 {[%clk 0:00:11.3]}
44... c6 {[%clk 0:00:33.1]} 45. Nc3 {[%clk 0:00:10.7]} 45... Rb3 {[%clk
0:00:29.2]} 46. Qd2 {[%clk 0:00:09.6]} 46... Re8 {[%clk 0:00:23]} 47. Re3 {[%clk
0:00:06.8]} 47... Qe7 {[%clk 0:00:20.8]} 48. R3e2 {[%clk 0:00:05.7]} 48... Be5
{[%clk 0:00:21]} 49. Re3 {[%clk 0:00:05.6]} 49... Qf6 {[%clk 0:00:21.4]} 50. Rc1
{[%clk 0:00:04.5]} 50... Bd4 {[%clk 0:00:21.1]} 51. Re2 {[%clk 0:00:04.3]} 51...
Kg7 {[%clk 0:00:19]} 52. Rc2 {[%clk 0:00:03.8]} 52... Bxc3 {[%clk 0:00:18.5]}
53. Rxc3 {[%clk 0:00:03.1]} 53... Nxe4 {[%clk 0:00:18.4]} 54. Rxe4 {[%clk
0:00:02.6]} 54... Rxe4 {[%clk 0:00:17.9]} 55. Rxb3 {[%clk 0:00:02.2]} 55... axb3
{[%clk 0:00:18.3]} 56. Bf3 {[%clk 0:00:02.2]} 56... Re5 {[%clk 0:00:18.1]} 57.
dxc6 {[%clk 0:00:02]} 57... bxc6 {[%clk 0:00:16.6]} 58. Qb4 {[%clk 0:00:01.6]}
58... Rxf5 {[%clk 0:00:16]} 0-1

[Event "*** SCC Grand Prix: Titled Tuesday Blitz"]
[Site "Chess.com"]
[Date "2020.08.11"]
[Round "10"]
[White "Zmeeed63"]
[Black "lider34"]
[Result "1-0"]
[WhiteElo "2235"]
[BlackElo "2368"]
[TimeControl "180+1"]
[EndTime "11:58:41 PDT"]
[Termination "Zmeeed63 won on time"]

1. d4 {[%clk 0:03:00.9]} 1... Nf6 {[%clk 0:02:38.8]} 2. c4 {[%clk 0:03:00.4]}
2... g6 {[%clk 0:02:38.9]} 3. Nc3 {[%clk 0:03:00.4]} 3... Bg7 {[%clk 0:02:39.8]}
4. Nf3 {[%clk 0:03:00.3]} 4... d6 {[%clk 0:02:39.5]} 5. Bg5 {[%clk 0:03:00.6]}
5... O-O {[%clk 0:02:40.4]} 6. e3 {[%clk 0:03:00.7]} 6... Nbd7 {[%clk
0:02:39.1]} 7. Be2 {[%clk 0:03:00.8]} 7... h6 {[%clk 0:02:37.8]} 8. Bh4 {[%clk
0:03:00.6]} 8... c6 {[%clk 0:02:37.4]} 9. O-O {[%clk 0:03:00.3]} 9... Qc7 {[%clk
0:02:36.7]} 10. h3 {[%clk 0:02:58.4]} 10... e5 {[%clk 0:02:35.9]} 11. Bg3 {[%clk
0:02:58]} 11... Re8 {[%clk 0:02:33.9]} 12. c5 {[%clk 0:02:49.8]} 12... Nh5
{[%clk 0:02:20.3]} 13. Bh2 {[%clk 0:02:49.6]} 13... dxc5 {[%clk 0:02:11.1]} 14.
Nxe5 {[%clk 0:02:17.3]} 14... Nxe5 {[%clk 0:02:04.7]} 15. Bxh5 {[%clk
0:02:16.9]} 15... gxh5 {[%clk 0:02:02.8]} 16. Qxh5 {[%clk 0:02:09.2]} 16... cxd4
{[%clk 0:01:46.7]} 17. exd4 {[%clk 0:02:08.4]} 17... Nf3+ {[%clk 0:01:45.4]} 18.
Qxf3 {[%clk 0:02:07.5]} 18... Qb6 {[%clk 0:01:45]} 19. d5 {[%clk 0:01:39.9]}
19... Qxb2 {[%clk 0:01:42]} 20. Ne4 {[%clk 0:01:36.8]} 20... cxd5 {[%clk
0:01:38.5]} 21. Nd6 {[%clk 0:01:36.4]} 21... Rf8 {[%clk 0:01:34.9]} 22. Rab1
{[%clk 0:01:32.6]} 22... Qxa2 {[%clk 0:01:32.7]} 23. Rb4 {[%clk 0:01:23.7]}
23... a5 {[%clk 0:01:20]} 24. Rh4 {[%clk 0:01:21.6]} 24... Ra6 {[%clk
0:01:15.8]} 25. Bf4 {[%clk 0:00:50.3]} 25... d4 {[%clk 0:01:04.8]} 26. Qg3
{[%clk 0:00:47.1]} 26... Kh7 {[%clk 0:00:55.5]} 27. Rc1 {[%clk 0:00:22.2]} 27...
Qe6 {[%clk 0:00:44.7]} 28. Qd3+ {[%clk 0:00:07.3]} 28... Qg6 {[%clk 0:00:38]}
29. Qa3 {[%clk 0:00:07.2]} 29... Be6 {[%clk 0:00:33.1]} 30. Nxb7 {[%clk
0:00:06]} 30... Bd5 {[%clk 0:00:32]} 31. Rg4 {[%clk 0:00:03.8]} 31... Qf5 {[%clk
0:00:26]} 32. Nc5 {[%clk 0:00:03.3]} 32... Rg6 {[%clk 0:00:23.2]} 33. Rxg6
{[%clk 0:00:03]} 33... fxg6 {[%clk 0:00:23.1]} 34. Bg3 {[%clk 0:00:02]} 34... h5
{[%clk 0:00:21]} 35. Qxa5 {[%clk 0:00:02]} 35... Bh6 {[%clk 0:00:20.1]} 36. Rf1
{[%clk 0:00:01.8]} 36... h4 {[%clk 0:00:18.6]} 37. Bxh4 {[%clk 0:00:01.2]} 37...
d3 {[%clk 0:00:17.7]} 38. Bg3 {[%clk 0:00:02.1]} 38... d2 {[%clk 0:00:16.6]} 39.
Rd1 {[%clk 0:00:03]} 39... Qc2 {[%clk 0:00:15]} 40. Qa1 {[%clk 0:00:02.6]} 40...
Bg7 {[%clk 0:00:11.6]} 41. Nd7 {[%clk 0:00:02.9]} 41... Rg8 {[%clk 0:00:09.8]}
42. Qb1 {[%clk 0:00:02.4]} 42... Bc3 {[%clk 0:00:05.8]} 43. Qxc2 {[%clk
0:00:02.3]} 43... Be6 {[%clk 0:00:05.6]} 44. Nf6+ {[%clk 0:00:02.4]} 44... Bxf6
{[%clk 0:00:03.8]} 45. Rxd2 {[%clk 0:00:03.3]} 45... Rg7 {[%clk 0:00:04]} 46.
Qc6 {[%clk 0:00:03.4]} 46... Bf5 {[%clk 0:00:04.7]} 47. Rd6 {[%clk 0:00:03.5]}
47... Be7 {[%clk 0:00:03.4]} 48. Rd7 {[%clk 0:00:03.6]} 1-0

[Event "*** SCC Grand Prix: Titled Tuesday Blitz"]
[Site "Chess.com"]
[Date "2020.08.11"]
[Round "10"]
[White "Skatchkov_V"]
[Black "KuzubovYuriy"]
[Result "0-1"]
[WhiteElo "2643"]
[BlackElo "2821"]
[TimeControl "180+1"]
[EndTime "11:58:42 PDT"]
[Termination "KuzubovYuriy won on time"]

1. d4 {[%clk 0:03:00.2]} 1... Nf6 {[%clk 0:02:59.6]} 2. c4 {[%clk 0:03:00.6]}
2... e6 {[%clk 0:02:59.9]} 3. Nf3 {[%clk 0:03:01.2]} 3... d5 {[%clk 0:03:00]} 4.
g3 {[%clk 0:03:01.2]} 4... dxc4 {[%clk 0:03:00.4]} 5. Bg2 {[%clk 0:03:01.9]}
5... Bb4+ {[%clk 0:03:00.6]} 6. Bd2 {[%clk 0:03:01.3]} 6... a5 {[%clk
0:03:00.5]} 7. O-O {[%clk 0:03:01.3]} 7... c6 {[%clk 0:02:58.2]} 8. Qc2 {[%clk
0:02:59.5]} 8... b5 {[%clk 0:02:54.7]} 9. Nc3 {[%clk 0:02:59.7]} 9... Nbd7
{[%clk 0:02:36.6]} 10. Rad1 {[%clk 0:02:57.5]} 10... Bb7 {[%clk 0:02:30]} 11.
Ne5 {[%clk 0:02:46.1]} 11... Bxc3 {[%clk 0:02:11.4]} 12. Bxc3 {[%clk 0:02:29.7]}
12... Nd5 {[%clk 0:02:08.8]} 13. a4 {[%clk 0:01:46.9]} 13... O-O {[%clk
0:01:56.2]} 14. Bd2 {[%clk 0:01:06.9]} 14... N7b6 {[%clk 0:01:47.8]} 15. e4
{[%clk 0:00:53.4]} 15... Nb4 {[%clk 0:01:45.8]} 16. Bxb4 {[%clk 0:00:39.7]}
16... axb4 {[%clk 0:01:45]} 17. axb5 {[%clk 0:00:40.4]} 17... cxb5 {[%clk
0:01:42.7]} 18. d5 {[%clk 0:00:41]} 18... Qd6 {[%clk 0:01:33.5]} 19. Ng4 {[%clk
0:00:37.8]} 19... e5 {[%clk 0:01:29.2]} 20. f4 {[%clk 0:00:37.3]} 20... exf4
{[%clk 0:01:26.6]} 21. gxf4 {[%clk 0:00:32.7]} 21... b3 {[%clk 0:01:23.6]} 22.
Qf2 {[%clk 0:00:27.9]} 22... Na4 {[%clk 0:01:20.8]} 23. Kh1 {[%clk 0:00:25.5]}
23... c3 {[%clk 0:01:16.2]} 24. bxc3 {[%clk 0:00:24.5]} 24... Nxc3 {[%clk
0:01:16.1]} 25. Rd3 {[%clk 0:00:21.8]} 25... b4 {[%clk 0:01:14.4]} 26. e5 {[%clk
0:00:22.1]} 26... Qg6 {[%clk 0:00:59.1]} 27. Rg3 {[%clk 0:00:20.1]} 27... Ra2
{[%clk 0:00:58.8]} 28. Nf6+ {[%clk 0:00:17]} 28... gxf6 {[%clk 0:00:57.3]} 29.
Qb6 {[%clk 0:00:14.4]} 29... Bxd5 {[%clk 0:00:29.4]} 30. Bxd5 {[%clk 0:00:13]}
30... Nxd5 {[%clk 0:00:28]} 31. Qd4 {[%clk 0:00:12.4]} 31... Ne7 {[%clk
0:00:20.5]} 32. Rfg1 {[%clk 0:00:10.8]} 32... Nf5 {[%clk 0:00:18.6]} 33. Rxg6+
{[%clk 0:00:10.6]} 33... hxg6 {[%clk 0:00:18.5]} 34. Qd3 {[%clk 0:00:09.1]}
34... Kh7 {[%clk 0:00:13.2]} 35. Qh3+ {[%clk 0:00:06.7]} 35... Nh6 {[%clk
0:00:13.3]} 36. Qxb3 {[%clk 0:00:07.1]} 36... Rf2 {[%clk 0:00:12.4]} 37. Qxb4
{[%clk 0:00:06.5]} 37... Rc8 {[%clk 0:00:12.3]} 38. e6 {[%clk 0:00:03.3]} 38...
Rcc2 {[%clk 0:00:08.7]} 39. Rg3 {[%clk 0:00:03.4]} 39... Rxh2+ {[%clk
0:00:07.8]} 40. Kg1 {[%clk 0:00:03.9]} 40... Rhd2 {[%clk 0:00:07.7]} 41. Kh1
{[%clk 0:00:02.2]} 41... Nf5 {[%clk 0:00:07.1]} 42. Rh3+ {[%clk 0:00:01.9]}
42... Kg7 {[%clk 0:00:07]} 43. Rg3 {[%clk 0:00:01.2]} 43... Nxg3+ {[%clk
0:00:06.1]} 0-1

[Event "*** SCC Grand Prix: Titled Tuesday Blitz"]
[Site "Chess.com"]
[Date "2020.08.11"]
[Round "10"]
[White "Eternauta2400"]
[Black "Batsai"]
[Result "1-0"]
[WhiteElo "2494"]
[BlackElo "2342"]
[TimeControl "180+1"]
[EndTime "11:58:46 PDT"]
[Termination "Eternauta2400 won by checkmate"]

1. e4 {[%clk 0:03:00.9]} 1... c5 {[%clk 0:02:58.1]} 2. Nf3 {[%clk 0:02:59.4]}
2... d6 {[%clk 0:02:58.5]} 3. Bb5+ {[%clk 0:02:52.6]} 3... Nd7 {[%clk
0:02:58.4]} 4. O-O {[%clk 0:02:50.4]} 4... g6 {[%clk 0:02:58.4]} 5. c3 {[%clk
0:02:48.5]} 5... Bg7 {[%clk 0:02:58.3]} 6. d4 {[%clk 0:02:47.7]} 6... cxd4
{[%clk 0:02:57.9]} 7. cxd4 {[%clk 0:02:48.6]} 7... Nf6 {[%clk 0:02:58.3]} 8. Re1
{[%clk 0:02:48.6]} 8... a6 {[%clk 0:02:58.6]} 9. Bd3 {[%clk 0:02:48.7]} 9... O-O
{[%clk 0:02:58.6]} 10. Nc3 {[%clk 0:02:48.5]} 10... e5 {[%clk 0:02:56.9]} 11. h3
{[%clk 0:02:42.6]} 11... Nh5 {[%clk 0:02:51.8]} 12. Be3 {[%clk 0:02:37.7]} 12...
b5 {[%clk 0:02:24.6]} 13. a4 {[%clk 0:02:25.5]} 13... b4 {[%clk 0:02:09.9]} 14.
Nd5 {[%clk 0:02:24.5]} 14... a5 {[%clk 0:02:10.4]} 15. Rc1 {[%clk 0:02:20.8]}
15... Bb7 {[%clk 0:02:09.8]} 16. Nc7 {[%clk 0:02:09.5]} 16... Rc8 {[%clk
0:02:08.5]} 17. Nb5 {[%clk 0:02:09.2]} 17... d5 {[%clk 0:01:53.1]} 18. Rxc8
{[%clk 0:02:04]} 18... Qxc8 {[%clk 0:01:46.5]} 19. Nd6 {[%clk 0:02:03.3]} 19...
Qa8 {[%clk 0:01:46.8]} 20. Nxb7 {[%clk 0:02:03.2]} 20... Qxb7 {[%clk 0:01:47.7]}
21. exd5 {[%clk 0:02:02.9]} 21... Qxd5 {[%clk 0:01:48.6]} 22. dxe5 {[%clk
0:02:02.2]} 22... Nxe5 {[%clk 0:01:48.1]} 23. Nxe5 {[%clk 0:01:58.7]} 23... Qxe5
{[%clk 0:01:34.6]} 24. b3 {[%clk 0:01:40.9]} 24... Qf6 {[%clk 0:00:53]} 25. Bc4
{[%clk 0:01:36.1]} 25... Rd8 {[%clk 0:00:49.8]} 26. Qg4 {[%clk 0:01:33.3]} 26...
Qc3 {[%clk 0:00:47.6]} 27. Rd1 {[%clk 0:01:22.7]} 27... Rxd1+ {[%clk 0:00:43.2]}
28. Qxd1 {[%clk 0:01:23.6]} 28... Be5 {[%clk 0:00:39.3]} 29. Bc5 {[%clk
0:01:01.3]} 29... Kg7 {[%clk 0:00:36.9]} 30. Bb6 {[%clk 0:00:47.7]} 30... Nf4
{[%clk 0:00:31]} 31. Bxa5 {[%clk 0:00:36.8]} 31... Bd4 {[%clk 0:00:27.5]} 32.
Bc7 {[%clk 0:00:28.3]} 32... Qb2 {[%clk 0:00:23.8]} 33. Qf1 {[%clk 0:00:17.1]}
33... g5 {[%clk 0:00:23.3]} 34. Bxf4 {[%clk 0:00:16.3]} 34... gxf4 {[%clk
0:00:22.8]} 35. Qe2 {[%clk 0:00:15.3]} 35... Qc1+ {[%clk 0:00:11.7]} 36. Kh2
{[%clk 0:00:14.8]} 36... f3 {[%clk 0:00:10.5]} 37. Qxf3 {[%clk 0:00:12.9]} 37...
Be5+ {[%clk 0:00:10.5]} 38. g3 {[%clk 0:00:13.3]} 38... f6 {[%clk 0:00:08.3]}
39. Qg4+ {[%clk 0:00:13.4]} 39... Kf8 {[%clk 0:00:07.9]} 40. Qg8+ {[%clk
0:00:13.1]} 40... Ke7 {[%clk 0:00:07.8]} 41. Qxh7+ {[%clk 0:00:13.3]} 41... Kd6
{[%clk 0:00:07.7]} 42. Qe4 {[%clk 0:00:10.8]} 42... Qb2 {[%clk 0:00:06.6]} 43.
Qd5+ {[%clk 0:00:10.7]} 43... Ke7 {[%clk 0:00:05.4]} 44. Kg2 {[%clk 0:00:11]}
44... Qc3 {[%clk 0:00:04.3]} 45. a5 {[%clk 0:00:09.5]} 45... f5 {[%clk
0:00:04.5]} 46. a6 {[%clk 0:00:09]} 46... f4 {[%clk 0:00:04.8]} 47. Qe6+ {[%clk
0:00:08.4]} 47... Kd8 {[%clk 0:00:04.7]} 48. Qd5+ {[%clk 0:00:04.2]} 48... Kc7
{[%clk 0:00:04.2]} 49. a7 {[%clk 0:00:04.1]} 49... fxg3 {[%clk 0:00:04.5]} 50.
a8=Q {[%clk 0:00:03.9]} 50... gxf2 {[%clk 0:00:04.7]} 51. Qac6+ {[%clk
0:00:04.1]} 51... Kb8 {[%clk 0:00:04.6]} 52. Qd8+ {[%clk 0:00:04.1]} 52... Ka7
{[%clk 0:00:05.5]} 53. Qa5+ {[%clk 0:00:04.2]} 53... Kb8 {[%clk 0:00:05.4]} 54.
Qab6# {[%clk 0:00:04.5]} 1-0